[Event "MCR rapid mládeže 2023 U16"]
[Site "Harachov, Czech Republic"]
[Date "2023.09.09"]
[Round "3.25"]
[White "Lackova, Lucie"]
[Black "Stepankova, Linda"]
[Result "0-1"]
[TimeControl "20min+5s/move"]
[WhiteElo "1544"]
[BlackElo "1124"]

1. e4 {[%clk 00:20:07]} {[%emt 00:00:03]} d5 {[%clk 00:20:08]} {[%emt
00:00:03]} 2. exd5 {[%clk 00:20:10]} {[%emt 00:00:02]} Qxd5 {[%clk 00:19:45]}
{[%emt 00:00:28]} 3. Nc3 {[%clk 00:20:09]} {[%emt 00:00:05]} Qd6 {[%clk
00:19:48]} {[%emt 00:00:02]} 4. Nf3 {[%clk 00:19:53]} {[%emt 00:00:22]} Bg4
{[%clk 00:19:39]} {[%emt 00:00:15]} 5. Be2 {[%clk 00:19:01]} {[%emt 00:00:56]}
c6 {[%clk 00:19:17]} {[%emt 00:00:27]} 6. d4 {[%clk 00:18:43]} {[%emt
00:00:23]} e6 {[%clk 00:18:48]} {[%emt 00:00:35]} 7. O-O {[%clk 00:18:41]}
{[%emt 00:00:06]} Nd7 {[%clk 00:18:00]} {[%emt 00:00:53]} 8. Be3 {[%clk
00:17:16]} {[%emt 00:01:30]} Ngf6 {[%clk 00:16:55]} {[%emt 00:01:10]} 9. Qd2
{[%clk 00:16:32]} {[%emt 00:00:49]} Qc7 {[%clk 00:16:46]} {[%emt 00:00:14]} 10.
h3 {[%clk 00:15:41]} {[%emt 00:00:56]} Bh5 {[%clk 00:16:34]} {[%emt 00:00:17]}
11. Rad1 {[%clk 00:14:34]} {[%emt 00:01:12]} Bd6 {[%clk 00:16:20]} {[%emt
00:00:19]} 12. Bg5 {[%clk 00:12:50]} {[%emt 00:01:47]} O-O {[%clk 00:14:26]}
{[%emt 00:02:00]} 13. a3 {[%clk 00:12:01]} {[%emt 00:00:55]} h6 {[%clk
00:10:59]} {[%emt 00:03:32]} 14. Be3 {[%clk 00:11:50]} {[%emt 00:00:16]} a5
{[%clk 00:08:35]} {[%emt 00:02:29]} 15. Rb1 {[%clk 00:10:33]} {[%emt 00:01:22]}
Bg6 {[%clk 00:06:57]} {[%emt 00:01:42]} 16. Qd1 {[%clk 00:08:22]} {[%emt
00:02:17]} Bf4 {[%clk 00:04:53]} {[%emt 00:02:09]} 17. Bxf4 {[%clk 00:06:44]}
{[%emt 00:01:42]} Qxf4 {[%clk 00:04:54]} {[%emt 00:00:04]} 18. Rc1 {[%clk
00:05:27]} {[%emt 00:01:23]} Rfe8 {[%clk 00:03:55]} {[%emt 00:01:04]} 19. Qd2
{[%clk 00:05:04]} {[%emt 00:00:28]} Qxd2 {[%clk 00:03:18]} {[%emt 00:00:42]} 20.
Nxd2 {[%clk 00:05:04]} {[%emt 00:00:04]} e5 {[%clk 00:02:21]} {[%emt 00:01:03]}
21. dxe5 {[%clk 00:04:11]} {[%emt 00:00:57]} Nxe5 {[%clk 00:01:05]} {[%emt
00:01:21]} 22. Nf3 {[%clk 00:03:49]} {[%emt 00:00:27]} Nxf3+ {[%clk 00:00:58]}
{[%emt 00:00:13]} 23. Bxf3 {[%clk 00:03:49]} {[%emt 00:00:05]} Kf8 {[%clk
00:00:42]} {[%emt 00:00:21]} 24. Rfd1 {[%clk 00:03:26]} {[%emt 00:00:27]} Rad8
{[%clk 00:00:38]} {[%emt 00:00:10]} 25. Kf1 {[%clk 00:02:02]} {[%emt 00:01:29]}
Rxd1+ {[%clk 00:00:33]} {[%emt 00:00:09]} 26. Nxd1 {[%clk 00:01:45]} {[%emt
00:00:22]} Ne4 {[%clk 00:00:17]} {[%emt 00:00:22]} 27. Bxe4 {[%clk 00:01:11]}
{[%emt 00:00:39]} Rxe4 {[%clk 00:00:17]} {[%emt 00:00:05]} 28. Ne3 {[%clk
00:00:56]} {[%emt 00:00:20]} Re6 {[%clk 00:00:12]} {[%emt 00:00:10]} 29. Rd1
{[%clk 00:00:52]} {[%emt 00:00:08]} Ke7 {[%clk 00:00:15]} {[%emt 00:00:03]} 30.
Rd4 {[%clk 00:00:45]} {[%emt 00:00:09]} Rd6 {[%clk 00:00:12]} {[%emt 00:00:11]}
31. Ra4 {[%clk 00:00:20]} {[%emt 00:00:30]} b6 {[%clk 00:00:11]} {[%emt
00:00:07]} 32. Ke1 {[%clk 00:00:22]} {[%emt 00:00:02]} Kd7 {[%clk 00:00:10]}
{[%emt 00:00:06]} 33. Nc4 {[%clk 00:00:11]} {[%emt 00:00:16]} b5 {[%clk
00:00:07]} {[%emt 00:00:08]} 34. Nb6+ {[%clk 00:00:12]} {[%emt 00:00:04]} Kc7
{[%clk 00:00:09]} {[%emt 00:00:03]} 35. Na8+ {[%clk 00:00:11]} {[%emt
00:00:06]} Kb7 {[%clk 00:00:14]} 36. Rxa5 {[%clk 00:00:15]} {[%emt 00:00:02]}
Rd8 {[%clk 00:00:15]} {[%emt 00:00:04]} 37. Nc7 {[%clk 00:00:00]} {[%emt
00:00:14]} 0-1

[Event "MCR rapid mládeže 2023 U16"]
[Site "Harachov, Czech Republic"]
[Date "2023.09.09"]
[Round "3.26"]
[White "Jakubse, Tamae Severina"]
[Black "Mojzisova, Barbora"]
[Result "1-0"]
[TimeControl "20min+5s/move"]
[WhiteElo "1223"]
[BlackElo "1220"]

1. e4 {[%clk 00:20:08]} {[%emt 00:00:01]} e5 {[%clk 00:20:09]} {[%emt
00:00:01]} 2. Nc3 {[%clk 00:20:11]} {[%emt 00:00:02]} Nc6 {[%clk 00:20:12]}
{[%emt 00:00:02]} 3. Bc4 {[%clk 00:20:14]} {[%emt 00:00:02]} Nf6 {[%clk
00:20:03]} {[%emt 00:00:14]} 4. d3 {[%clk 00:20:14]} {[%emt 00:00:05]} Bb4
{[%clk 00:19:59]} {[%emt 00:00:08]} 5. f4 {[%clk 00:19:49]} {[%emt 00:00:32]}
d6 {[%clk 00:19:39]} {[%emt 00:00:24]} 6. f5 {[%clk 00:19:05]} {[%emt
00:00:48]} g6 {[%clk 00:18:20]} {[%emt 00:01:25]} 7. fxg6 {[%clk 00:18:11]}
{[%emt 00:01:00]} fxg6 {[%clk 00:18:02]} {[%emt 00:00:23]} 8. Nf3 {[%clk
00:17:22]} {[%emt 00:00:53]} Bg4 {[%clk 00:17:37]} {[%emt 00:00:29]} 9. h3
{[%clk 00:15:25]} {[%emt 00:02:04]} Bxf3 {[%clk 00:17:15]} {[%emt 00:00:27]} 10.
Qxf3 {[%clk 00:15:27]} {[%emt 00:00:02]} Nd4 {[%clk 00:17:08]} {[%emt
00:00:11]} 11. Qf2 {[%clk 00:14:00]} {[%emt 00:01:32]} Rf8 {[%clk 00:16:35]}
{[%emt 00:00:39]} 12. O-O {[%clk 00:13:17]} {[%emt 00:00:48]} Qe7 {[%clk
00:15:35]} {[%emt 00:01:01]} 13. Bg5 {[%clk 00:10:49]} {[%emt 00:02:36]} Nxe4
{[%clk 00:13:51]} {[%emt 00:01:50]} 14. Qxf8+ {[%clk 00:08:41]} {[%emt
00:02:14]} Qxf8 {[%clk 00:13:46]} {[%emt 00:00:10]} 15. Rxf8+ {[%clk 00:08:44]}
{[%emt 00:00:01]} Kxf8 {[%clk 00:13:47]} {[%emt 00:00:04]} 16. Nxe4 {[%clk
00:08:45]} {[%emt 00:00:05]} Nxc2 {[%clk 00:12:40]} {[%emt 00:01:11]} 17. Rf1+
{[%clk 00:08:21]} {[%emt 00:00:28]} Ke8 {[%clk 00:12:33]} {[%emt 00:00:07]} 18.
Nf6+ {[%clk 00:07:50]} {[%emt 00:00:42]} Ke7 {[%clk 00:12:16]} {[%emt
00:00:15]} 19. Nxh7+ {[%clk 00:07:34]} {[%emt 00:00:29]} Kd7 {[%clk 00:12:05]}
{[%emt 00:00:08]} 20. Rf7+ {[%clk 00:06:53]} {[%emt 00:00:52]} Kc6 {[%clk
00:12:02]} {[%emt 00:00:05]} 21. Nf6 {[%clk 00:06:40]} {[%emt 00:00:22]} Bc5+
{[%clk 00:11:48]} {[%emt 00:00:19]} 22. Kh1 {[%clk 00:06:31]} {[%emt 00:00:11]}
Nb4 {[%clk 00:10:58]} {[%emt 00:00:57]} 23. a3 {[%clk 00:06:18]} {[%emt
00:00:19]} Na6 {[%clk 00:10:09]} {[%emt 00:00:53]} 24. b4 {[%clk 00:06:08]}
{[%emt 00:00:16]} Bd4 {[%clk 00:10:07]} {[%emt 00:00:04]} 25. b5+ {[%clk
00:05:56]} {[%emt 00:00:21]} Kb6 {[%clk 00:10:05]} {[%emt 00:00:03]} 26. bxa6
{[%clk 00:05:53]} {[%emt 00:00:12]} bxa6 {[%clk 00:10:08]} {[%emt 00:00:01]} 27.
Nd5+ {[%clk 00:05:52]} {[%emt 00:00:06]} Kc6 {[%clk 00:10:02]} {[%emt
00:00:08]} 28. Rxc7# {[%clk 00:05:54]} {[%emt 00:00:06]} 1-0

[Event "MCR rapid mládeže 2023 U16"]
[Site "Harachov, Czech Republic"]
[Date "2023.09.09"]
[Round "3.27"]
[White "Barteckova, Nikol"]
[Black "Janouskova, Eliska"]
[Result "0-1"]
[TimeControl "20min+5s/move"]
[WhiteElo "1246"]
[BlackElo "1333"]

1. e4 {[%clk 00:20:09]} c5 {[%clk 00:20:07]} {[%emt 00:00:04]} 2. c3 {[%clk
00:20:10]} {[%emt 00:00:03]} Nf6 {[%clk 00:20:10]} {[%emt 00:00:02]} 3. e5
{[%clk 00:20:15]} {[%emt 00:00:01]} Nd5 {[%clk 00:20:14]} {[%emt 00:00:02]} 4.
d4 {[%clk 00:20:19]} cxd4 {[%clk 00:20:17]} {[%emt 00:00:02]} 5. cxd4 {[%clk
00:20:22]} {[%emt 00:00:01]} e6 {[%clk 00:20:15]} {[%emt 00:00:08]} 6. Nc3
{[%clk 00:20:19]} {[%emt 00:00:08]} d6 {[%clk 00:19:33]} {[%emt 00:00:46]} 7.
Nf3 {[%clk 00:19:31]} {[%emt 00:00:53]} Be7 {[%clk 00:19:11]} {[%emt 00:00:27]}
8. Be2 {[%clk 00:17:51]} {[%emt 00:01:46]} Nc6 {[%clk 00:18:26]} {[%emt
00:00:50]} 9. O-O {[%clk 00:17:39]} {[%emt 00:00:17]} a6 {[%clk 00:18:04]}
{[%emt 00:00:27]} 10. a4 {[%clk 00:17:31]} {[%emt 00:00:14]} O-O {[%clk
00:17:42]} {[%emt 00:00:25]} 11. Re1 {[%clk 00:16:49]} {[%emt 00:00:47]} Nxc3
{[%clk 00:17:16]} {[%emt 00:00:31]} 12. bxc3 {[%clk 00:16:52]} {[%emt
00:00:03]} dxe5 {[%clk 00:17:17]} {[%emt 00:00:04]} 13. Nxe5 {[%clk 00:16:27]}
{[%emt 00:00:29]} Nxe5 {[%clk 00:17:17]} {[%emt 00:00:06]} 14. dxe5 {[%clk
00:16:31]} {[%emt 00:00:02]} Qc7 {[%clk 00:17:19]} {[%emt 00:00:03]} 15. Bb2
{[%clk 00:14:34]} {[%emt 00:02:01]} b6 {[%clk 00:14:49]} {[%emt 00:02:35]} 16.
Bf3 {[%clk 00:14:05]} {[%emt 00:00:34]} Bb7 {[%clk 00:14:49]} {[%emt 00:00:05]}
17. Bxb7 {[%clk 00:13:55]} {[%emt 00:00:16]} Qxb7 {[%clk 00:14:52]} {[%emt
00:00:01]} 18. Ba3 {[%clk 00:13:47]} {[%emt 00:00:13]} Bxa3 {[%clk 00:14:46]}
{[%emt 00:00:11]} 19. Rxa3 {[%clk 00:13:50]} {[%emt 00:00:01]} Rfd8 {[%clk
00:14:45]} {[%emt 00:00:07]} 20. Qb1 {[%clk 00:13:29]} {[%emt 00:00:24]} Rac8
{[%clk 00:13:17]} {[%emt 00:01:35]} 21. Rb3 {[%clk 00:12:36]} {[%emt 00:00:58]}
Rc6 {[%clk 00:13:15]} {[%emt 00:00:06]} 22. h3 {[%clk 00:12:23]} {[%emt
00:00:18]} h6 {[%clk 00:12:19]} {[%emt 00:01:01]} 23. Rd1 {[%clk 00:12:10]}
{[%emt 00:00:18]} Qc7 {[%clk 00:11:25]} {[%emt 00:01:00]} 24. Rxd8+ {[%clk
00:11:35]} {[%emt 00:00:40]} Qxd8 {[%clk 00:11:28]} {[%emt 00:00:01]} 25. c4
{[%clk 00:09:59]} {[%emt 00:01:42]} Qc7 {[%clk 00:11:19]} {[%emt 00:00:13]} 26.
a5 {[%clk 00:09:30]} {[%emt 00:00:35]} b5 {[%clk 00:11:03]} {[%emt 00:00:20]}
27. Rb4 {[%clk 00:08:50]} {[%emt 00:00:44]} Rxc4 {[%clk 00:10:41]} {[%emt
00:00:27]} 28. Rxc4 {[%clk 00:08:54]} {[%emt 00:00:02]} Qxc4 {[%clk 00:10:44]}
{[%emt 00:00:01]} 29. Qa1 {[%clk 00:08:10]} {[%emt 00:00:39]} Qd5 {[%clk
00:09:06]} {[%emt 00:01:54]} 30. Qc3 {[%clk 00:07:44]} {[%emt 00:00:24]} Qd8
{[%clk 00:08:16]} {[%emt 00:01:02]} 31. Kh2 {[%clk 00:07:07]} {[%emt 00:00:41]}
g6 {[%clk 00:08:15]} {[%emt 00:00:07]} 32. f4 {[%clk 00:06:31]} {[%emt
00:00:40]} Kg7 {[%clk 00:08:03]} {[%emt 00:00:17]} 33. Qb4 {[%clk 00:05:58]}
{[%emt 00:00:39]} Qc7 {[%clk 00:07:31]} {[%emt 00:00:36]} 34. Qa3 {[%clk
00:05:10]} {[%emt 00:00:51]} Qc4 {[%clk 00:06:59]} {[%emt 00:00:40]} 35. Qg3
{[%clk 00:04:55]} {[%emt 00:00:14]} Qe4 {[%clk 00:06:15]} {[%emt 00:00:55]} 36.
h4 {[%clk 00:04:47]} {[%emt 00:00:13]} Qf5 {[%clk 00:06:09]} {[%emt 00:00:11]}
37. Qe3 {[%clk 00:04:15]} {[%emt 00:00:31]} Qc2 {[%clk 00:05:25]} {[%emt
00:00:54]} 38. Qd4 {[%clk 00:03:56]} {[%emt 00:00:16]} Qc6 {[%clk 00:04:21]}
{[%emt 00:01:14]} 39. Qd8 {[%clk 00:03:34]} {[%emt 00:00:27]} b4 {[%clk
00:02:52]} {[%emt 00:01:37]} 40. Qf6+ {[%clk 00:03:36]} {[%emt 00:00:02]} Kg8
{[%clk 00:02:22]} {[%emt 00:00:34]} 41. Qd8+ {[%clk 00:03:39]} {[%emt
00:00:03]} Kh7 {[%clk 00:02:25]} {[%emt 00:00:02]} 42. Qe7 {[%clk 00:03:29]}
{[%emt 00:00:13]} Kg7 {[%clk 00:02:06]} {[%emt 00:00:26]} 43. Qxb4 {[%clk
00:03:33]} {[%emt 00:00:02]} Qc8 {[%clk 00:01:54]} {[%emt 00:00:16]} 44. Qe7
{[%clk 00:03:23]} {[%emt 00:00:10]} Kg8 {[%clk 00:01:46]} {[%emt 00:00:18]} 45.
Qd6 {[%clk 00:03:12]} {[%emt 00:00:15]} Kg7 {[%clk 00:01:08]} {[%emt 00:00:44]}
46. Qd3 {[%clk 00:02:51]} {[%emt 00:00:23]} Qa8 {[%clk 00:00:34]} {[%emt
00:00:42]} 47. g4 {[%clk 00:02:18]} {[%emt 00:00:38]} Qb7 {[%clk 00:00:26]}
{[%emt 00:00:13]} 48. h5 {[%clk 00:02:10]} {[%emt 00:00:12]} Qc8 {[%clk
00:00:12]} {[%emt 00:00:20]} 49. hxg6 {[%clk 00:02:08]} {[%emt 00:00:08]} fxg6
{[%clk 00:00:15]} 50. Kh3 {[%clk 00:01:58]} {[%emt 00:00:14]} Qb7 {[%clk
00:00:13]} {[%emt 00:00:08]} 51. Kg3 {[%clk 00:01:50]} {[%emt 00:00:12]} Qc8
{[%clk 00:00:12]} {[%emt 00:00:07]} 52. Qb3 {[%clk 00:01:01]} {[%emt 00:00:53]}
Kf7 {[%clk 00:00:06]} {[%emt 00:00:12]} 53. Qd3 {[%clk 00:00:46]} {[%emt
00:00:16]} Kg7 {[%clk 00:00:10]} {[%emt 00:00:05]} 54. Kh4 {[%emt 00:00:12]}
Qb7 {[%clk 00:00:11]} {[%emt 00:00:02]} 55. Kg3 {[%clk 00:00:26]} {[%emt
00:00:17]} Qc8 {[%clk 00:00:15]} {[%emt 00:00:03]} 56. Qf3 {[%clk 00:00:19]}
{[%emt 00:00:11]} Kf7 {[%clk 00:00:12]} {[%emt 00:00:08]} 0-1

[Event "MCR rapid mládeže 2023 U16"]
[Site "Harachov, Czech Republic"]
[Date "2023.09.09"]
[Round "3.28"]
[White "Kusova, Nikola"]
[Black "Peskova, Sara"]
[Result "1-0"]
[TimeControl "20min+5s/move"]
[WhiteElo "1247"]
[BlackElo "1451"]

1. e4 {[%clk 00:20:07]} {[%emt 00:00:02]} e5 {[%clk 00:20:07]} {[%emt
00:00:03]} 2. Nc3 {[%clk 00:20:10]} {[%emt 00:00:02]} Nc6 {[%clk 00:20:11]}
{[%emt 00:00:02]} 3. Bc4 {[%clk 00:20:12]} {[%emt 00:00:03]} Bc5 {[%clk
00:20:06]} {[%emt 00:00:09]} 4. Qg4 {[%clk 00:20:14]} {[%emt 00:00:02]} g6
{[%clk 00:19:25]} {[%emt 00:00:47]} 5. Qg3 {[%clk 00:20:12]} {[%emt 00:00:02]}
Nf6 {[%clk 00:19:21]} {[%emt 00:00:10]} 6. d3 {[%clk 00:20:06]} {[%emt
00:00:15]} h6 {[%clk 00:19:09]} {[%emt 00:00:16]} 7. f4 {[%clk 00:19:26]}
{[%emt 00:00:45]} d6 {[%clk 00:18:49]} {[%emt 00:00:25]} 8. Nf3 {[%clk
00:17:52]} {[%emt 00:01:40]} Qe7 {[%clk 00:18:27]} {[%emt 00:00:26]} 9. Na4
{[%clk 00:17:23]} {[%emt 00:00:35]} Be6 {[%clk 00:15:57]} {[%emt 00:02:34]} 10.
Bxe6 {[%clk 00:16:19]} {[%emt 00:01:09]} Qxe6 {[%clk 00:15:50]} {[%emt
00:00:10]} 11. Nxc5 {[%clk 00:16:15]} {[%emt 00:00:12]} dxc5 {[%clk 00:15:46]}
{[%emt 00:00:09]} 12. fxe5 {[%clk 00:14:55]} {[%emt 00:01:25]} Nh5 {[%clk
00:15:31]} {[%emt 00:00:17]} 13. Qf2 {[%clk 00:14:30]} {[%emt 00:00:32]} b6
{[%clk 00:14:37]} {[%emt 00:00:59]} 14. O-O {[%clk 00:13:31]} {[%emt 00:01:05]}
O-O-O {[%clk 00:13:49]} {[%emt 00:00:52]} 15. a4 {[%clk 00:12:18]} {[%emt
00:01:20]} f5 {[%clk 00:13:14]} {[%emt 00:00:37]} 16. exf6 {[%clk 00:12:11]}
{[%emt 00:00:13]} Qxf6 {[%clk 00:12:44]} {[%emt 00:00:30]} 17. Qe2 {[%clk
00:09:10]} {[%emt 00:03:12]} g5 {[%clk 00:11:15]} {[%emt 00:01:33]} 18. Nxg5
{[%clk 00:08:49]} {[%emt 00:00:26]} Qg6 {[%clk 00:10:51]} {[%emt 00:00:25]} 19.
Nf7 {[%clk 00:08:26]} {[%emt 00:00:33]} 1-0

[Event "MCR rapid mládeže 2023 U16"]
[Site "Harachov, Czech Republic"]
[Date "2023.09.09"]
[Round "3.29"]
[White "Velim, Vojtech"]
[Black "Kozusnik, Jan"]
[Result "0-1"]
[TimeControl "20min+5s/move"]
[WhiteElo "1799"]
[BlackElo "1399"]

1. d4 {[%clk 00:20:03]} {[%emt 00:00:07]} d5 {[%clk 00:20:09]} {[%emt
00:00:01]} 2. c4 {[%clk 00:20:05]} {[%emt 00:00:02]} dxc4 {[%clk 00:20:08]}
{[%emt 00:00:07]} 3. e3 {[%clk 00:20:06]} {[%emt 00:00:04]} Nf6 {[%clk
00:20:09]} {[%emt 00:00:05]} 4. Bxc4 {[%clk 00:20:10]} {[%emt 00:00:01]} e6
{[%clk 00:20:02]} {[%emt 00:00:11]} 5. Nc3 {[%clk 00:20:11]} {[%emt 00:00:03]}
c5 {[%clk 00:20:00]} {[%emt 00:00:08]} 6. Nf3 {[%clk 00:20:13]} {[%emt
00:00:03]} Nc6 {[%clk 00:19:49]} {[%emt 00:00:16]} 7. O-O {[%clk 00:20:08]}
{[%emt 00:00:09]} Bd6 {[%clk 00:19:30]} {[%emt 00:00:25]} 8. h3 {[%clk
00:19:55]} {[%emt 00:00:17]} O-O {[%clk 00:19:28]} {[%emt 00:00:08]} 9. b3
{[%clk 00:19:39]} {[%emt 00:00:21]} cxd4 {[%clk 00:18:49]} {[%emt 00:00:44]} 10.
exd4 {[%clk 00:19:31]} {[%emt 00:00:14]} e5 {[%clk 00:18:37]} {[%emt 00:00:17]}
11. dxe5 {[%clk 00:18:39]} {[%emt 00:00:56]} Nxe5 {[%clk 00:18:20]} {[%emt
00:00:22]} 12. Nxe5 {[%clk 00:18:18]} {[%emt 00:00:26]} Bxe5 {[%clk 00:18:21]}
{[%emt 00:00:04]} 13. Bb2 {[%clk 00:18:17]} {[%emt 00:00:05]} Bf5 {[%clk
00:17:17]} {[%emt 00:01:10]} 14. Re1 {[%clk 00:17:43]} {[%emt 00:00:39]} Re8
{[%clk 00:14:23]} {[%emt 00:02:59]} 15. Qf3 {[%clk 00:16:51]} {[%emt 00:00:57]}
Qd2 {[%clk 00:12:40]} {[%emt 00:01:48]} 16. Re2 {[%clk 00:15:30]} {[%emt
00:01:26]} Qg5 {[%clk 00:11:11]} {[%emt 00:01:34]} 17. Bxf7+ {[%clk 00:14:13]}
{[%emt 00:01:22]} Kxf7 {[%clk 00:10:33]} {[%emt 00:00:43]} 18. Qxb7+ {[%clk
00:13:47]} {[%emt 00:00:32]} Bd7 {[%clk 00:10:05]} {[%emt 00:00:32]} 19. Ne4
{[%clk 00:11:22]} {[%emt 00:02:30]} Qf5 {[%clk 00:08:55]} {[%emt 00:01:16]} 20.
Bxe5 {[%clk 00:10:11]} {[%emt 00:01:16]} Qxe5 {[%clk 00:07:39]} {[%emt
00:01:22]} 21. Nxf6 {[%clk 00:05:04]} {[%emt 00:05:11]} Qxe2 {[%clk 00:07:30]}
{[%emt 00:00:14]} 22. Nxd7 {[%clk 00:04:50]} {[%emt 00:00:19]} Kg8 {[%clk
00:05:49]} {[%emt 00:01:45]} 23. Rc1 {[%clk 00:03:55]} {[%emt 00:01:01]} Rad8
{[%clk 00:05:19]} {[%emt 00:00:35]} 24. Qd5+ {[%clk 00:02:22]} {[%emt
00:01:38]} Qe6 {[%clk 00:05:14]} {[%emt 00:00:04]} 25. Qxe6+ {[%clk 00:02:00]}
{[%emt 00:00:33]} Rxe6 {[%clk 00:05:15]} {[%emt 00:00:04]} 26. Nc5 {[%clk
00:02:02]} {[%emt 00:00:03]} Rc6 {[%clk 00:04:50]} {[%emt 00:00:28]} 27. b4
{[%clk 00:02:04]} {[%emt 00:00:05]} a5 {[%clk 00:04:24]} {[%emt 00:00:31]} 28.
b5 {[%clk 00:02:02]} {[%emt 00:00:07]} Rc7 {[%clk 00:04:16]} {[%emt 00:00:13]}
29. Nb3 {[%clk 00:00:26]} {[%emt 00:01:41]} Rxc1+ {[%clk 00:04:16]} {[%emt
00:00:05]} 30. Nxc1 {[%clk 00:00:30]} Rd1+ {[%clk 00:04:20]} {[%emt 00:00:02]}
31. Kh2 {[%clk 00:00:30]} {[%emt 00:00:05]} Rxc1 {[%clk 00:04:23]} {[%emt
00:00:02]} 32. a4 {[%clk 00:00:32]} {[%emt 00:00:03]} Rb1 {[%clk 00:04:22]}
{[%emt 00:00:05]} 33. Kg3 {[%clk 00:00:36]} {[%emt 00:00:02]} Rb4 {[%clk
00:04:26]} {[%emt 00:00:02]} 34. Kf3 {[%clk 00:00:40]} Rxa4 {[%clk 00:04:29]}
{[%emt 00:00:02]} 35. Ke3 {[%clk 00:00:44]} Rb4 {[%clk 00:04:33]} {[%emt
00:00:02]} 36. Kd3 {[%clk 00:00:48]} Kf7 {[%clk 00:04:32]} {[%emt 00:00:06]} 37.
Kc3 {[%clk 00:00:52]} {[%emt 00:00:02]} Rxb5 {[%clk 00:04:29]} {[%emt
00:00:08]} 38. Kd4 {[%emt 00:00:34]} 0-1

[Event "MCR rapid mládeže 2023 U16"]
[Site "Harachov, Czech Republic"]
[Date "2023.09.09"]
[Round "3.30"]
[White "Vorlik, Jachym"]
[Black "Fadrny, Jachym"]
[Result "0-1"]
[TimeControl "20min+5s/move"]
[WhiteElo "1210"]
[BlackElo "1347"]

1. e4 {[%clk 00:20:07]} {[%emt 00:00:02]} e6 {[%clk 00:20:08]} {[%emt
00:00:03]} 2. d4 {[%clk 00:20:06]} {[%emt 00:00:06]} d5 {[%clk 00:20:11]}
{[%emt 00:00:02]} 3. exd5 {[%clk 00:20:09]} {[%emt 00:00:02]} exd5 {[%clk
00:20:14]} {[%emt 00:00:01]} 4. Nf3 {[%clk 00:20:10]} {[%emt 00:00:05]} Bd6
{[%clk 00:20:15]} {[%emt 00:00:03]} 5. Bd3 {[%clk 00:20:02]} {[%emt 00:00:14]}
Bg4 {[%clk 00:20:16]} {[%emt 00:00:04]} 6. O-O {[%clk 00:19:59]} {[%emt
00:00:08]} Nc6 {[%clk 00:19:55]} {[%emt 00:00:26]} 7. c3 {[%clk 00:19:52]}
{[%emt 00:00:12]} Nge7 {[%clk 00:19:42]} {[%emt 00:00:18]} 8. Re1 {[%clk
00:19:05]} {[%emt 00:00:52]} O-O {[%clk 00:19:37]} {[%emt 00:00:10]} 9. Bxh7+
{[%clk 00:18:45]} {[%emt 00:00:24]} Kh8 {[%clk 00:18:15]} {[%emt 00:01:26]} 10.
Bd3 {[%clk 00:18:19]} {[%emt 00:00:32]} Ng6 {[%clk 00:17:37]} {[%emt 00:00:44]}
11. h3 {[%clk 00:17:14]} {[%emt 00:01:10]} Bxf3 {[%clk 00:16:47]} {[%emt
00:00:55]} 12. Qxf3 {[%clk 00:16:58]} {[%emt 00:00:20]} Qd7 {[%clk 00:16:10]}
{[%emt 00:00:32]} 13. Qh5+ {[%clk 00:16:14]} {[%emt 00:01:00]} Kg8 {[%clk
00:15:52]} {[%emt 00:00:23]} 14. Bxg6 {[%clk 00:15:55]} {[%emt 00:00:23]} fxg6
{[%clk 00:15:55]} {[%emt 00:00:02]} 15. Qxd5+ {[%clk 00:15:38]} {[%emt
00:00:21]} Kh8 {[%clk 00:15:52]} {[%emt 00:00:09]} 16. Qg5 {[%clk 00:14:12]}
{[%emt 00:01:29]} Rae8 {[%clk 00:15:42]} {[%emt 00:00:17]} 17. Rxe8 {[%clk
00:13:51]} {[%emt 00:00:27]} Qxe8 {[%clk 00:15:39]} {[%emt 00:00:08]} 18. Be3
{[%clk 00:13:45]} {[%emt 00:00:11]} Rf5 {[%clk 00:14:43]} {[%emt 00:00:59]} 19.
Qh4+ {[%clk 00:13:07]} {[%emt 00:00:43]} Rh5 {[%clk 00:14:43]} {[%emt
00:00:06]} 20. Qg4 {[%clk 00:13:09]} {[%emt 00:00:03]} Ne7 {[%clk 00:13:29]}
{[%emt 00:01:19]} 21. Bf4 {[%clk 00:12:14]} {[%emt 00:01:01]} Nf5 {[%clk
00:12:09]} {[%emt 00:01:25]} 22. Qf3 {[%clk 00:09:28]} {[%emt 00:02:49]} Qe1+
{[%clk 00:11:27]} {[%emt 00:00:47]} 23. Kh2 {[%clk 00:09:25]} {[%emt 00:00:08]}
Nh4 {[%clk 00:10:46]} {[%emt 00:00:46]} 24. Qe3 {[%clk 00:08:40]} {[%emt
00:00:50]} Qf1 {[%clk 00:09:41]} {[%emt 00:01:11]} 25. g4 {[%clk 00:05:56]}
{[%emt 00:02:46]} Qg2# {[%clk 00:08:43]} {[%emt 00:01:04]} 0-1